bitfinex/quotes_BTCUSD_20250808
["timestamp","ask_amount","ask_price","bid_price","bid_amount"]
[1754617575270,0.44705005,116870.0,116860.0,0.66422587]
[1754617575667,0.44705005,116870.0,116860.0,0.24250111]
[1754617575883,0.44705005,116870.0,116860.0,0.11555111]
[1754617576518,0.86877481,116870.0,116860.0,0.003]
[1754617576943,0.93825243,116870.0,116860.0,0.003]
[1754617577200,1.45190879,116870.0,116860.0,1e-08]
[1754617577417,0.18860862,116850.0,116840.0,0.00047418]
[1754617577628,0.74477338,116850.0,116840.0,0.00047418]
[1754617578173,0.86876338,116850.0,116840.0,0.00052543]
[1754617578614,0.89499192,116850.0,116840.0,0.00052543]
[1754617579058,0.47326716,116850.0,116840.0,0.00052543]
[1754617579711,0.44703862,116850.0,116840.0,0.00552543]
[1754617580333,0.86876338,116850.0,116840.0,0.00552543]
[1754617580751,0.44703862,116850.0,116840.0,0.00552543]
[1754617588350,0.44699862,116850.0,116840.0,0.00552543]
[1754617588556,0.44699862,116850.0,116840.0,0.54984019]
[1754617588759,0.32300862,116850.0,116840.0,0.54984019]
[1754617589924,0.32300862,116850.0,116840.0,0.12811543]
[1754617590772,0.44386862,116850.0,116840.0,0.12811543]
[1754617591006,0.31162862,116850.0,116840.0,0.29928968]
[1754617591215,0.32084862,116850.0,116840.0,0.72414444]
[1754617591653,0.01744902,116850.0,116840.0,0.72414444]
[1754617591878,0.13224,116850.0,116840.0,0.81100655]
[1754617592429,0.18860632,116860.0,116850.0,0.1711596]
[1754617592636,0.32084632,116860.0,116850.0,0.71860436]
[1754617592849,0.32084632,116860.0,116850.0,0.2968796]
[1754617593064,0.32084632,116860.0,116850.0,0.12572]
[1754617593269,0.44170632,116860.0,116850.0,0.12259]
[1754617593477,0.44386632,116860.0,116850.0,0.12264125]
[1754617593911,0.44699632,116860.0,116850.0,0.12264125]
[1754617594116,0.44699632,116860.0,116850.0,5.125e-05]
[1754617594675,0.44699632,116860.0,116850.0,0.00305125]
[1754617594926,0.44699632,116860.0,116850.0,0.12360125]
[1754617595356,0.44699632,116860.0,116850.0,0.12564125]
[1754617595562,0.44699632,116860.0,116850.0,0.15133325]
[1754617599892,0.44699632,116860.0,116850.0,0.12564125]
[1754617602373,0.32084632,116860.0,116850.0,0.71852561]
[1754617602571,0.32084632,116860.0,116850.0,0.54736601]
[1754617602984,0.44699632,116860.0,116850.0,0.54736601]
[1754617603254,0.44699632,116860.0,116850.0,0.12564125]
[1754617606406,0.32084632,116860.0,116850.0,0.12564125]
[1754617606630,0.30058754,116870.0,116850.0,0.94278721]
[1754617606833,0.31509656,116870.0,116860.0,0.53992476]
[1754617606979,0.32929656,116870.0,116860.0,0.62886687]
[1754617607184,0.33131656,116870.0,116860.0,0.62886687]
[1754617607386,0.45221656,116870.0,116860.0,0.20714211]
[1754617607594,0.45221656,116870.0,116860.0,0.11255211]
[1754617607798,0.45221656,116870.0,116860.0,0.11260336]
[1754617608472,0.45221656,116870.0,116860.0,0.11460336]
[1754617610763,0.45221656,116870.0,116860.0,0.08891336]
[1754617614525,0.45221656,116870.0,116860.0,0.20711336]
[1754617616149,0.45221656,116870.0,116860.0,0.08891336]
[1754617618746,0.45221656,116870.0,116860.0,0.20919336]
[1754617619080,0.45221656,116870.0,116860.0,0.63091812]
[1754617619404,0.32005656,116870.0,116860.0,0.65660812]
[1754617619832,0.45213656,116870.0,116860.0,0.65660812]
[1754617620043,0.17968682,116870.0,116860.0,1.08965307]
[1754617620246,0.17968682,116870.0,116860.0,1.09275307]
[1754617620465,0.17111567,116880.0,116870.0,0.17113031]
[1754617620670,0.17111567,116880.0,116870.0,0.9373163]
[1754617620872,0.17111567,116880.0,116870.0,0.93517718]
[1754617621621,0.17111567,116880.0,116870.0,0.93817718]
[1754617621985,0.17111567,116880.0,116870.0,0.93822843]
[1754617623967,0.17111567,116880.0,116870.0,0.34227336]
[1754617624184,0.29109567,116880.0,116870.0,0.34227336]
[1754617624391,0.29403567,116880.0,116870.0,0.64371812]
[1754617624712,0.71576043,116880.0,116870.0,0.08991336]
[1754617624942,0.73320945,116880.0,116870.0,0.00305125]
[1754617632846,0.31148469,116880.0,116870.0,0.00305125]
[1754617635649,0.73320945,116880.0,116870.0,0.00305125]
[1754617635946,0.31148469,116880.0,116870.0,0.00305125]
[1754617636401,0.44348469,116880.0,116870.0,0.11622125]
[1754617636596,0.44348469,116880.0,116870.0,0.00305125]
[1754617637442,0.86520945,116880.0,116870.0,0.00305125]
[1754617646348,0.86520945,116880.0,116870.0,0.11819125]
[1754617646562,0.86520945,116880.0,116870.0,0.00305125]
[1754617646792,0.30854469,116880.0,116870.0,0.11819125]
[1754617647024,0.32048469,116880.0,116870.0,0.11819125]
[1754617647476,0.32048469,116880.0,116870.0,0.62991812]
[1754617647477,0.30303567,116880.0,116870.0,0.62991812]
[1754617648000,0.30303567,116880.0,116870.0,0.20819336]
[1754617650422,0.86696945,116880.0,116870.0,0.00502125]
[1754617650630,0.86696945,116880.0,116870.0,0.00305125]
[1754617651892,0.44524469,116880.0,116870.0,0.00305125]
[1754617652114,0.44524469,116880.0,116870.0,0.11819125]
[1754617652329,0.86696945,116880.0,116870.0,0.11819125]
[1754617652525,0.86696945,116880.0,116870.0,0.00502125]
[1754617652737,0.86696945,116880.0,116870.0,0.00305125]
[1754617655079,0.44524469,116880.0,116870.0,0.00305125]
[1754617655286,0.44524469,116880.0,116870.0,0.11819125]
[1754617655703,0.86696945,116880.0,116870.0,0.00305125]
[1754617660319,0.86696945,116880.0,116870.0,0.00305125]
[1754617660860,0.44524469,116880.0,116870.0,0.00305125]
[1754617661071,0.86696945,116880.0,116870.0,0.00305125]
[1754617663947,0.44524469,116880.0,116870.0,0.12823125]
[1754617664726,0.32048469,116880.0,116870.0,0.12823125]
[1754617667169,0.32048469,116880.0,116870.0,0.13132125]
[1754617668809,0.32048469,116880.0,116870.0,0.12823125]
[1754617669739,0.44418469,116880.0,116870.0,0.12823125]
[1754617669900,0.32048469,116880.0,116870.0,0.12823125]
[1754617671499,0.32048469,116880.0,116870.0,0.15148472]
[1754617672397,0.32048469,116880.0,116870.0,0.12823125]
[1754617672931,0.44418469,116880.0,116870.0,0.12823125]
[1754617673514,0.17111567,116880.0,116870.0,0.21509336]
[1754617673731,0.17111567,116880.0,116870.0,0.63990812]
[1754617673951,0.17111567,116880.0,116870.0,0.81103843]
[1754617674169,0.31145608,116890.0,116870.0,0.81103843]
[1754617674384,0.17110103,116890.0,116880.0,0.93764254]
[1754617674604,0.31145321,116900.0,116880.0,0.93977254]
[1754617674821,0.17965321,116900.0,116890.0,0.71896579]
[1754617675037,0.17965321,116900.0,116890.0,0.38623314]
[1754617675252,0.17965321,116900.0,116890.0,0.21513211]
[1754617675510,0.19710223,116900.0,116890.0,0.21204211]
[1754617675731,0.17979516,116900.0,116890.0,0.21204211]
[1754617675963,0.19724418,116900.0,116890.0,0.21409336]
[1754617676697,0.32608418,116900.0,116890.0,0.08891336]
[1754617677384,0.32608418,116900.0,116890.0,0.21196336]
[1754617678487,0.32608418,116900.0,116890.0,0.21409336]
[1754617679213,0.19933418,116900.0,116890.0,0.21409336]
[1754617679419,0.19724418,116900.0,116890.0,0.21409336]
[1754617679629,0.32900418,116900.0,116890.0,0.21409336]
[1754617679838,0.45479418,116900.0,116890.0,0.21409336]
[1754617680064,0.00014195,116900.0,116890.0,0.63890812]
[1754617680300,0.17122834,116900.0,116890.0,0.38828439]
[1754617680503,0.00014195,116900.0,116890.0,0.81000915]
[1754617683459,0.17122834,116900.0,116890.0,0.81000915]
[1754617684760,0.00014195,116900.0,116890.0,0.81000915]
[1754617684991,0.00014195,116900.0,116890.0,1.76190915]
[1754617686274,0.00014195,116900.0,116890.0,1.34018439]
[1754617686475,0.00014195,116900.0,116890.0,1.76190915]
[1754617686856,0.00014195,116900.0,116890.0,1.75990915]
[1754617687079,0.00914195,116900.0,116890.0,1.75990915]
[1754617687781,0.00914195,116900.0,116890.0,1.78490915]
[1754617689513,0.00914195,116900.0,116890.0,1.84162915]
[1754617689646,0.00914195,116900.0,116890.0,1.69162915]
[1754617689849,0.00914195,116900.0,116890.0,1.84162915]
[1754617690250,0.00014195,116900.0,116890.0,1.84162915]
[1754617690683,0.00814195,116900.0,116890.0,1.84162915]
[1754617691091,0.00814195,116900.0,116890.0,1.55990915]
[1754617691308,0.00814195,116900.0,116890.0,1.83849915]
[1754617691521,0.00814195,116900.0,116890.0,1.84158915]
[1754617691974,0.00814195,116900.0,116890.0,1.69158915]
[1754617692179,0.00814195,116900.0,116890.0,1.84158915]
[1754617693130,0.00814195,116900.0,116890.0,1.69158915]
[1754617693548,0.00814195,116900.0,116890.0,1.84158915]
[1754617694174,0.00814195,116900.0,116890.0,1.84162915]
[1754617694808,0.00814195,116900.0,116890.0,1.41990439]
[1754617695018,0.00814195,116900.0,116890.0,1.83636915]
[1754617696821,0.00814195,116900.0,116890.0,1.41464439]
[1754617697059,0.00814195,116900.0,116890.0,1.84159915]
[1754617697819,0.00814195,116900.0,116890.0,1.41987439]
[1754617698028,0.00814195,116900.0,116890.0,1.84159915]
[1754617698197,0.00814195,116900.0,116890.0,2.04159915]
[1754617702563,0.00814195,116900.0,116890.0,2.06727515]
[1754617703376,0.00814195,116900.0,116890.0,1.93559515]
[1754617703591,0.00814195,116900.0,116890.0,2.06723515]
[1754617704629,0.12942195,116900.0,116890.0,1.60731515]
[1754617704834,0.12942195,116900.0,116890.0,1.73891515]
[1754617705249,0.12942195,116900.0,116890.0,1.31719039]
[1754617705472,0.12942195,116900.0,116890.0,1.73891515]
[1754617706023,0.12942195,116900.0,116890.0,1.85378515]
[1754617706223,0.01015195,116900.0,116890.0,1.85378515]
[1754617706428,0.00814195,116900.0,116890.0,1.85378515]
[1754617710213,0.00814195,116900.0,116890.0,1.82810915]
[1754617710644,0.00814195,116900.0,116890.0,1.83123915]
[1754617711085,0.00814195,116900.0,116890.0,2.03123915]
[1754617712759,0.00814195,116900.0,116890.0,1.60951439]
[1754617712960,0.00814195,116900.0,116890.0,2.03123915]
[1754617714500,0.00814195,116900.0,116890.0,2.05623915]
[1754617715530,0.00814195,116900.0,116890.0,2.08191315]
[1754617716832,0.18874762,116930.0,116920.0,0.52105713]
[1754617717039,0.19075762,116930.0,116920.0,1.41496205]
[1754617717338,0.19075762,116930.0,116920.0,1.86983205]
[1754617718822,0.12128,116930.0,116920.0,1.86983205]
[1754617719050,0.12128,116930.0,116920.0,1.86990928]
[1754617719729,0.11882476,116930.0,116920.0,1.86990928]
[1754617719941,0.001,116930.0,116920.0,2.29476404]
[1754617720164,0.001,116930.0,116920.0,1.87303928]
[1754617720368,0.001,116930.0,116920.0,2.29476404]
[1754617720569,0.001,116930.0,116920.0,2.04100599]
[1754617720784,0.001,116930.0,116920.0,2.06600599]
[1754617720986,0.001,116930.0,116920.0,2.09100599]
[1754617721145,0.24910538,116970.0,116950.0,0.17099883]
[1754617721340,0.26669677,116970.0,116960.0,0.30251863]
[1754617721659,0.26870677,116970.0,116960.0,0.30251863]
[1754617721891,0.38797677,116970.0,116960.0,0.30251863]
[1754617722294,0.38797677,116970.0,116960.0,0.30259586]
[1754617722509,0.31849915,116970.0,116960.0,7.723e-05]
[1754617722735,0.31849915,116970.0,116960.0,0.30259586]
[1754617722924,0.31849915,116970.0,116960.0,0.13159723]
[1754617723093,0.74022391,116970.0,116960.0,0.13159723]
[1754617723491,0.74022391,116970.0,116960.0,7.723e-05]
[1754617724374,0.87174391,116970.0,116960.0,0.00307723]
[1754617725257,0.95860602,116970.0,116960.0,0.00307723]
[1754617726251,0.95860602,116970.0,116960.0,7.723e-05]
[1754617726639,0.95860602,116970.0,116960.0,0.00207723]
[1754617727290,1.38033078,116970.0,116960.0,0.00207723]
[1754617727499,1.38033078,116970.0,116960.0,1e-08]
[1754617727500,1.72033078,116970.0,116960.0,1e-08]
[1754617727926,0.18850279,116930.0,116910.0,0.30255159]
[1754617728145,0.30738615,116920.0,116910.0,0.41012292]
[1754617728468,0.30738615,116920.0,116910.0,0.3894137]
[1754617729322,0.13632902,116920.0,116910.0,0.3913737]
[1754617731079,0.14332902,116920.0,116910.0,0.3913737]
[1754617731250,0.31438615,116920.0,116910.0,0.3913737]
[1754617731673,0.31752615,116920.0,116910.0,0.3894137]
[1754617732240,0.14332902,116920.0,116910.0,0.3913737]
[1754617732449,0.14332902,116920.0,116910.0,0.5121137]
[1754617733685,0.14332902,116920.0,116910.0,0.93690846]
[1754617733893,0.02444902,116920.0,116910.0,0.93690846]
[1754617735202,0.14120902,116920.0,116910.0,0.93690846]
[1754617735592,0.007,116920.0,116910.0,1.08690846]
[1754617738367,0.007,116920.0,116910.0,1.34066651]
[1754617738869,0.007,116920.0,116910.0,1.19066651]
[1754617739085,0.29693713,116920.0,116910.0,0.64317175]
[1754617739300,0.30007713,116920.0,116910.0,0.64317175]
[1754617740346,0.30007713,116920.0,116910.0,0.64513175]
[1754617740553,0.29693713,116920.0,116910.0,0.64513192]
[1754617740703,0.30007713,116920.0,116910.0,0.64513192]
[1754617741125,0.29693713,116920.0,116910.0,0.64513192]
[1754617741859,0.29693713,116920.0,116910.0,0.51169192]
[1754617742058,0.17108639,116900.0,116890.0,0.76494768]
[1754617742312,0.17108639,116900.0,116890.0,1.10598979]
[1754617742529,0.30842078,116910.0,116890.0,1.53078455]
[1754617742731,0.30842078,116910.0,116900.0,0.08686211]
[1754617742945,0.30740078,116910.0,116900.0,0.2599085]
[1754617743143,0.30740078,116910.0,116900.0,0.70247951]
[1754617743293,0.30740078,116910.0,116900.0,0.51054687]
[1754617743712,0.30740078,116910.0,116900.0,0.08882211]
[1754617745445,0.31240078,116910.0,116900.0,0.08882211]
[1754617746015,0.31554078,116910.0,116900.0,0.08686211]
[1754617746795,0.31240078,116910.0,116900.0,0.08882211]
[1754617748779,0.31028078,116910.0,116900.0,0.20956211]
[1754617749021,0.31028078,116910.0,116900.0,0.3837185]
[1754617749230,0.19352078,116910.0,116900.0,0.3837185]
[1754617749434,0.31240078,116910.0,116900.0,0.3837185]
[1754617749808,0.31240078,116910.0,116900.0,0.80544326]
[1754617750261,0.31240078,116910.0,116900.0,0.21263211]
[1754617750449,0.31240078,116910.0,116900.0,0.80544326]
[1754617750744,0.31240078,116910.0,116900.0,0.63435687]
[1754617751559,0.31240078,116910.0,116900.0,0.21263211]
[1754617751740,0.31240078,116910.0,116900.0,0.63435687]
[1754617751933,0.31240078,116910.0,116900.0,0.21263211]
[1754617752150,0.31240078,116910.0,116900.0,0.08882211]
[1754617753947,0.31537078,116910.0,116900.0,0.08882211]
[1754617754951,0.31537078,116910.0,116900.0,0.08686211]
[1754617755150,0.17108639,116900.0,116890.0,0.59384805]
[1754617755355,0.29332639,116900.0,116890.0,0.47215016]
[1754617755560,0.73250017,116900.0,116890.0,0.13153]
[1754617755745,0.31077541,116900.0,116890.0,0.13153]
[1754617756290,0.31077541,116900.0,116890.0,9e-05]
[1754617756503,0.31477541,116900.0,116890.0,9e-05]
[1754617756870,0.31077541,116900.0,116890.0,9e-05]
[1754617757071,0.31577541,116900.0,116890.0,9e-05]
[1754617758272,0.33361006,116900.0,116890.0,9e-05]
[1754617758622,0.75533482,116900.0,116890.0,9e-05]
[1754617759157,0.33361006,116900.0,116890.0,9e-05]
[1754617759355,0.75533482,116900.0,116890.0,9e-05]
[1754617762074,0.75033482,116900.0,116890.0,9e-05]
[1754617762488,0.75033482,116900.0,116890.0,0.00809]
[1754617764799,0.32861006,116900.0,116890.0,0.00809]
[1754617765020,0.83719693,116900.0,116890.0,0.00809]
[1754617765616,0.41547217,116900.0,116890.0,0.00809]
[1754617765815,0.83719693,116900.0,116890.0,0.00809]
[1754617766622,0.41547217,116900.0,116890.0,0.00809]
[1754617766807,0.83719693,116900.0,116890.0,0.00809]
[1754617772058,0.81936228,116900.0,116890.0,0.00809]
[1754617773179,0.95080228,116900.0,116890.0,0.00809]
[1754617778803,0.31077541,116900.0,116890.0,0.00809]
[1754617779064,0.30248639,116900.0,116890.0,0.1375]
[1754617779298,0.41973639,116900.0,116890.0,0.1375]
[1754617779500,0.42175639,116900.0,116890.0,0.1375]
[1754617779700,0.84348115,116900.0,116890.0,0.0101]
[1754617779970,0.86093017,116900.0,116890.0,0.0101]
[1754617783461,0.86390017,116900.0,116890.0,0.00809]
[1754617786889,0.86093017,116900.0,116890.0,0.12691]
[1754617787109,0.43920541,116900.0,116890.0,0.13015]
[1754617787323,0.31993541,116900.0,116890.0,0.13015]
[1754617787837,0.43922541,116900.0,116890.0,0.13015]
[1754617788077,0.44137541,116900.0,116890.0,0.13015]
[1754617788238,0.86310017,116900.0,116890.0,0.13015]
[1754617791082,0.86310017,116900.0,116890.0,0.00809]
[1754617791296,0.86609017,116900.0,116890.0,0.00809]
[1754617799742,0.86306017,116900.0,116890.0,0.01023]
[1754617800175,0.86574017,116900.0,116890.0,0.00809]
[1754617800392,0.44401541,116900.0,116890.0,0.00809]
[1754617800615,0.86574017,116900.0,116890.0,0.00809]
[1754617801287,0.95260228,116900.0,116890.0,0.00809]
[1754617801474,0.18860325,116870.0,116850.0,0.11992]
[1754617801733,0.30251739,116860.0,116850.0,0.11992]
[1754617801980,0.86098117,116860.0,116850.0,0.12220195]
[1754617802216,0.86283117,116860.0,116850.0,0.12220195]
[1754617802433,0.31996641,116860.0,116850.0,0.12220195]
[1754617803078,0.31996641,116860.0,116850.0,0.12420195]
[1754617803751,0.31996641,116860.0,116850.0,0.12220195]
[1754617804986,0.19769996,116870.0,116850.0,0.71508631]
[1754617805222,0.17114495,116860.0,116850.0,0.51086882]
[1754617805461,0.17114495,116860.0,116850.0,0.26030366]
[1754617805692,0.17971074,116870.0,116860.0,0.17114495]
[1754617805930,0.17968682,116870.0,116860.0,0.71492971]
[1754617806140,0.19713584,116870.0,116860.0,0.71492971]
[1754617807241,0.19713584,116870.0,116860.0,0.12206]
[1754617807448,0.19713584,116870.0,116860.0,0.54378476]
[1754617807655,0.19713584,116870.0,116860.0,0.71492971]
[1754617807866,0.19713584,116870.0,116860.0,0.29320495]
[1754617808514,0.19713584,116870.0,116860.0,0.28782495]
[1754617808721,0.19713584,116870.0,116860.0,0.29320495]
[1754617809260,0.30247567,116880.0,116860.0,1.06369182]
[1754617809467,0.31992469,116880.0,116870.0,0.11992]
[1754617809675,0.31992469,116880.0,116870.0,0.12206]
[1754617812423,0.31992469,116880.0,116870.0,0.12506]
[1754617816294,0.44474469,116880.0,116870.0,0.12506]
[1754617816511,0.31992469,116880.0,116870.0,0.12506]
[1754617819338,0.18856469,116880.0,116870.0,0.29619031]
[1754617819542,0.31988469,116880.0,116870.0,0.29619031]
[1754617820007,0.30243567,116880.0,116870.0,0.38305242]
[1754617820225,0.32843752,116890.0,116870.0,0.93609718]
[1754617820438,0.32843752,116890.0,116870.0,0.81617718]
[1754617820623,0.32843752,116890.0,116880.0,0.11771]
[1754617820819,0.19711752,116890.0,116880.0,0.11972]
[1754617820979,0.32843752,116890.0,116880.0,0.11972]
[1754617821189,0.45325752,116890.0,116880.0,0.11972]
[1754617821573,0.32843752,116890.0,116880.0,0.11972]
[1754617821773,0.32843752,116890.0,116880.0,0.29083567]
[1754617822198,0.33143752,116890.0,116880.0,0.29083567]
[1754617822380,0.32843752,116890.0,116880.0,0.29083567]
[1754617822784,0.32843752,116890.0,116880.0,0.29283567]
[1754617823173,0.17111352,116910.0,116890.0,0.17110103]
[1754617823379,0.30243352,116910.0,116900.0,0.42373476]
[1754617823587,0.31988254,116910.0,116900.0,0.11972]
[1754617823762,0.30243352,116910.0,116900.0,0.11972]
[1754617823968,0.44470254,116910.0,116900.0,0.11972]
[1754617824169,0.44681254,116910.0,116900.0,0.11972]
[1754617824792,0.44881254,116910.0,116900.0,0.11972]
[1754617825005,0.44681254,116910.0,116900.0,0.00201]
[1754617827038,0.44681254,116910.0,116900.0,0.11671]
[1754617827751,0.44681254,116910.0,116900.0,0.29080639]
[1754617827990,0.30243352,116910.0,116900.0,0.29080639]
[1754617828413,0.30243352,116910.0,116900.0,0.3074869]
[1754617828713,0.42725352,116910.0,116900.0,0.3074869]
[1754617829241,0.29593352,116910.0,116900.0,0.3074869]
[1754617829524,0.30239352,116910.0,116900.0,0.3074869]
[1754617830658,0.30239352,116910.0,116900.0,0.11972]
[1754617830866,0.43249352,116910.0,116900.0,0.00201]
[1754617831071,0.17108639,116900.0,116890.0,0.50699314]
[1754617831386,0.29801639,116900.0,116890.0,0.22019211]
[1754617831635,0.72291115,116900.0,116890.0,0.21818211]
[1754617831846,0.30118639,116900.0,116890.0,0.08686211]
[1754617832068,0.17110103,116890.0,116880.0,0.90429567]
[1754617832303,0.17321103,116890.0,116880.0,0.99330973]
[1754617832505,0.29803103,116890.0,116880.0,0.99330973]
[1754617832685,0.29803103,116890.0,116880.0,1.12434053]
[1754617832892,0.12693,116890.0,116880.0,1.12735053]
[1754617833098,0.30207639,116900.0,116880.0,1.12735053]
[1754617834339,0.29590639,116900.0,116880.0,1.12735053]
[1754617834735,0.17410103,116890.0,116880.0,1.12735053]
[1754617835034,0.17110103,116890.0,116880.0,1.54907529]
[1754617835384,0.17110103,116890.0,116880.0,1.12735053]
[1754617835855,0.003,116890.0,116880.0,1.12735053]
[1754617836952,0.003,116890.0,116880.0,1.54907529]
[1754617839463,0.003,116890.0,116880.0,1.12735053]
[1754617839675,0.003,116890.0,116880.0,1.54907529]
[1754617840674,0.003,116890.0,116880.0,1.57475829]
[1754617845120,0.003,116890.0,116880.0,1.72475829]
[1754617846147,0.3044871,116910.0,116880.0,1.73331407]
[1754617846411,0.3044871,116910.0,116900.0,0.17108639]
[1754617846617,0.01173285,116920.0,116900.0,0.81294326]
[1754617846828,0.32082037,116920.0,116910.0,0.59279652]
[1754617847045,0.12376,116920.0,116910.0,0.80178863]
[1754617847279,0.3729,116930.0,116920.0,0.17105713]
[1754617847472,0.37501,116930.0,116920.0,0.17308713]
[1754617847718,0.39563902,116930.0,116920.0,0.30432713]
[1754617847943,0.30553238,116930.0,116920.0,0.72605189]
[1754617848173,0.00855212,116930.0,116920.0,0.84615189]
[1754617848384,0.43781386,116940.0,116920.0,1.194914]
[1754617848618,0.43795618,116940.0,116920.0,0.77318924]
[1754617848866,0.2969125,116930.0,116920.0,0.48203211]
[1754617849115,0.3000925,116930.0,116920.0,0.48000211]
[1754617849358,0.3000925,116930.0,116920.0,0.34876211]
[1754617850217,0.3000925,116930.0,116920.0,0.51981924]
[1754617850423,0.3000925,116930.0,116920.0,0.52184924]
[1754617850643,0.2969125,116930.0,116920.0,0.52184924]
[1754617850997,0.2969125,116930.0,116920.0,0.35079211]
[1754617852332,0.2969125,116930.0,116920.0,0.35279211]
[1754617853246,0.2969125,116930.0,116920.0,0.46980211]
[1754617854136,0.43473618,116940.0,116920.0,1.065674]
[1754617854354,0.1710425,116930.0,116920.0,0.64394924]
[1754617854773,0.2969125,116930.0,116920.0,0.35588211]
[1754617854990,0.2969125,116930.0,116920.0,0.35279211]
[1754617855207,0.2969125,116930.0,116920.0,0.35079211]
[1754617855933,0.2969125,116930.0,116920.0,0.35279211]
[1754617856151,0.2969125,116930.0,116920.0,0.52384924]
[1754617856601,0.2969125,116930.0,116920.0,0.98394924]
[1754617857563,0.2969125,116930.0,116920.0,0.81289211]
[1754617858145,0.2969125,116930.0,116920.0,0.82952709]
[1754617859188,0.2969125,116930.0,116920.0,1.00058422]
[1754617859322,0.12587,116930.0,116920.0,1.00058422]
[1754617859523,0.2969125,116930.0,116920.0,1.00058422]
[1754617860096,0.12587,116930.0,116920.0,1.00058422]
[1754617860308,0.2969125,116930.0,116920.0,0.81289211]
[1754617860744,0.3000925,116930.0,116920.0,0.69076211]
[1754617861170,0.3000925,116930.0,116920.0,0.82192211]
[1754617861379,0.2969125,116930.0,116920.0,1.11510924]
[1754617861594,0.2969125,116930.0,116920.0,0.82395211]
[1754617861816,0.3000925,116930.0,116920.0,0.82192211]
[1754617862231,0.2969125,116930.0,116920.0,1.11510924]
[1754617862445,0.2969125,116930.0,116920.0,0.94405211]
[1754617863108,0.2969125,116930.0,116920.0,0.82395211]
[1754617863541,0.2969125,116930.0,116920.0,0.48395211]
[1754617864546,0.2969125,116930.0,116920.0,0.60405211]
[1754617865993,0.2969125,116930.0,116920.0,0.60096211]
[1754617866204,0.2969125,116930.0,116920.0,0.48395211]
[1754617866944,0.3000925,116930.0,116920.0,0.48192211]
[1754617867155,0.2969125,116930.0,116920.0,0.60096211]
[1754617867365,0.2969125,116930.0,116920.0,0.60405211]
[1754617867772,0.2969125,116930.0,116920.0,0.48395211]
[1754617868648,0.2969125,116930.0,116920.0,0.60096211]
[1754617869220,0.2969125,116930.0,116920.0,0.60405211]
[1754617870795,0.2969125,116930.0,116920.0,0.77510924]
[1754617870987,0.2948025,116930.0,116920.0,0.77510924]
[1754617871342,0.1710425,116930.0,116920.0,0.77510924]
[1754617871938,0.2948025,116930.0,116920.0,0.77510924]
[1754617872077,0.2969125,116930.0,116920.0,0.77510924]
[1754617872286,0.2969125,116930.0,116920.0,0.48395211]
[1754617872502,0.2969125,116930.0,116920.0,0.60096211]
[1754617873075,0.2948025,116930.0,116920.0,1.11510924]
[1754617873292,0.1710425,116930.0,116920.0,1.536834]
[1754617873502,0.43791618,116940.0,116920.0,1.536834]
[1754617873719,0.4553652,116940.0,116930.0,0.13116]
[1754617873942,0.4573352,116940.0,116930.0,0.13116]
[1754617875888,0.1710425,116930.0,116920.0,1.11103924]
[1754617876067,0.1710425,116930.0,116920.0,1.11298924]
[1754617876298,0.1972252,116940.0,116920.0,1.534714]
[1754617876427,0.1972252,116940.0,116920.0,1.414614]
[1754617876656,0.3184352,116940.0,116930.0,0.12446]
[1754617876935,0.3204052,116940.0,116930.0,0.12641]
[1754617877284,0.3204052,116940.0,116930.0,0.00195]
[1754617877486,0.1710425,116930.0,116920.0,1.537124]
[1754617877720,0.2922525,116930.0,116920.0,1.539074]
[1754617877993,0.1710425,116930.0,116920.0,1.539074]
[1754617878414,0.30098618,116940.0,116930.0,0.1710425]
[1754617878633,0.17977618,116940.0,116930.0,0.25985461]
[1754617878855,0.17977618,116940.0,116930.0,0.21327211]
[1754617879321,0.30098618,116940.0,116930.0,0.21327211]
[1754617879553,0.30295618,116940.0,116930.0,0.21327211]
[1754617879953,0.30295618,116940.0,116930.0,0.08881211]
[1754617880330,0.30295618,116940.0,116930.0,0.21009211]
[1754617880762,0.30295618,116940.0,116930.0,0.08881211]
[1754617881413,0.30295618,116940.0,116930.0,0.09081211]
[1754617883508,0.30617618,116940.0,116930.0,0.09081211]
[1754617883721,0.30557318,116940.0,116930.0,0.09081211]
[1754617884553,0.30235318,116940.0,116930.0,0.09081211]
[1754617884775,0.30235318,116940.0,116930.0,0.21527211]
[1754617885291,0.30235318,116940.0,116930.0,0.09081211]
[1754617885501,0.30235318,116940.0,116930.0,0.08886211]
[1754617885710,0.30557318,116940.0,116930.0,0.08886211]
[1754617886310,0.62155583,116940.0,116930.0,0.08886211]
[1754617887532,0.9549875,116940.0,116930.0,0.002]
[1754617888739,0.74454897,116940.0,116930.0,0.002]
[1754617889784,0.17107176,116910.0,116900.0,0.47112]
[1754617889983,0.42859176,116910.0,116900.0,0.81988211]
[1754617891686,0.42859176,116910.0,116900.0,0.82183211]
[1754617891890,0.43159176,116910.0,116900.0,0.82183211]
[1754617892368,0.43159176,116910.0,116900.0,0.34876211]
[1754617892578,0.85311853,116910.0,116900.0,0.34876211]
[1754617892805,0.87056755,116910.0,116900.0,0.2619]
[1754617892993,0.17108639,116900.0,116890.0,0.13112]
[1754617893250,0.17110103,116890.0,116880.0,0.73302]
[1754617893452,0.17110103,116890.0,116880.0,0.48183211]
[1754617893562,0.29231103,116890.0,116880.0,0.94629211]
[1754617894276,0.29231103,116890.0,116880.0,0.94643406]
[1754617894490,0.29831103,116890.0,116880.0,0.94643406]
[1754617894688,0.17710103,116890.0,116880.0,1.5390765]
[1754617895496,0.17110103,116890.0,116880.0,1.36796083]
[1754617895670,0.17810103,116890.0,116880.0,1.5390765]
[1754617895803,0.17810103,116890.0,116880.0,1.36796083]
[1754617898807,0.17810103,116890.0,116880.0,1.5390765]
[1754617899033,0.007,116890.0,116880.0,1.96060327]
[1754617899527,0.007,116890.0,116880.0,2.31060327]
[1754617905395,0.007,116890.0,116880.0,2.33628227]
[1754617907053,0.007,116890.0,116880.0,1.49322873]
[1754617907220,0.007,116890.0,116880.0,2.33628227]
[1754617907420,0.007,116890.0,116880.0,1.9147555]
[1754617910757,0.007,116890.0,116880.0,2.33628227]
[1754617912657,0.007,116890.0,116880.0,1.49322873]
[1754617912828,0.007,116890.0,116880.0,1.9147555]
[1754617913032,0.007,116890.0,116880.0,2.33628227]
[1754617913243,0.007,116890.0,116880.0,1.9147555]
[1754617919391,0.13352,116890.0,116880.0,1.7902955]
[1754617919733,0.13352,116890.0,116880.0,1.9173955]
[1754617920092,0.13153,116890.0,116880.0,1.9173955]
[1754617920512,0.007,116890.0,116880.0,1.9173955]
[1754617921375,0.17810103,116890.0,116880.0,1.5862755]
[1754617921589,0.30764103,116890.0,116880.0,1.7126265]
[1754617921811,0.30764103,116890.0,116880.0,1.24151083]
[1754617922028,0.30764103,116890.0,116880.0,1.4126265]
[1754617922584,0.18311103,116890.0,116880.0,1.4126265]
[1754617922775,0.30764103,116890.0,116880.0,0.81998406]
[1754617922916,0.30764103,116890.0,116880.0,1.24151083]
[1754617924032,0.30764103,116890.0,116880.0,1.26719183]